bitfinex/quotes_ETHUSD_20251119
["timestamp","ask_amount","ask_price","bid_price","bid_amount"]
[1763565255419,1.80819664,3095.3,3094.5,0.001]
[1763565255620,0.184,3094.6,3094.5,0.001]
[1763565256026,0.6797,3094.6,3094.5,0.001]
[1763565256563,1.085204,3094.6,3094.5,0.001]
[1763565256859,1.18705965,3094.6,3094.5,0.001]
[1763565257564,0.6797,3094.6,3094.5,0.001]
[1763565258573,0.6297,3094.6,3094.5,0.001]
[1763565259066,1.509504,3094.6,3094.5,0.001]
[1763565259232,2.41649664,3094.6,3094.5,0.001]
[1763565259432,1.31249664,3094.5,3093.0,0.001]
[1763565259629,0.3912,3094.3,3093.0,0.001]
[1763565259956,0.6575,3093.5,3093.0,0.001]
[1763565260330,1.16421437,3093.5,3093.0,0.001]
[1763565260527,0.50751437,3093.5,3093.1,0.0528]
[1763565260930,0.50751437,3093.5,3093.4,0.475]
[1763565261145,0.6297,3094.6,3093.4,0.949]
[1763565261340,0.50743335,3094.2,3093.4,0.949]
[1763565261541,0.50743335,3094.2,3093.5,0.89217875]
[1763565261930,0.184,3094.9,3093.5,0.474]
[1763565262248,0.4957,3094.8,3093.5,0.474]
[1763565262449,0.4957,3094.8,3093.4,0.001]
[1763565264548,0.50742524,3094.5,3093.4,0.001]
[1763565264990,0.50743338,3094.3,3093.4,0.001]
[1763565265852,1.00283338,3094.3,3093.4,0.001]
[1763565266392,0.1855,3093.5,3093.4,0.001]
[1763565266680,0.4954,3094.2,3093.4,0.001]
[1763565266869,0.1855,3093.8,3093.4,0.001]
[1763565267181,0.4802,3093.5,3093.4,0.001]
[1763565267571,0.9756,3093.5,3093.4,0.001]
[1763565268587,0.1855,3093.8,3093.4,0.001]
[1763565268784,0.1855,3094.0,3093.4,0.001]
[1763565269160,0.4954,3093.9,3093.4,0.001]
[1763565269392,0.4802,3093.5,3093.4,0.001]
[1763565269885,0.9756,3093.5,3093.4,0.001]
[1763565271453,0.9776,3093.5,3093.4,0.001]
[1763565271687,2.29009664,3093.5,3093.4,0.001]
[1763565272259,5.52268109,3093.5,3093.4,0.001]
[1763565272464,0.90699264,3093.4,3093.0,0.001]
[1763565272668,0.3092,3093.1,3093.0,0.001]
[1763565273190,0.8046,3093.1,3093.0,0.001]
[1763565273902,0.4974,3093.5,3093.0,0.001]
[1763565274069,0.4802,3093.1,3093.0,0.001]
[1763565274903,0.9756,3093.1,3093.0,0.001]
[1763565275424,1.4832078,3093.1,3093.0,0.001]
[1763565275927,0.9756,3093.1,3093.0,0.001]
[1763565276089,0.002,3093.5,3093.0,0.001]
[1763565276290,0.4802,3093.1,3093.0,0.001]
[1763565276812,1.381104,3093.1,3093.0,0.001]
[1763565278036,1.48322747,3093.1,3093.0,0.001]
[1763565278585,2.79572411,3093.1,3093.0,0.001]
[1763565278693,2.39637797,3093.1,3093.0,0.001]
[1763565278898,119.999,3092.0,3091.4,0.001]
[1763565279108,0.90699264,3091.9,3091.4,0.001]
[1763565279306,0.90699264,3091.9,3091.4,0.476]
[1763565279512,0.90699264,3091.9,3091.8,0.475]
[1763565279731,0.90699264,3091.9,3091.8,0.95]
[1763565279954,0.90699264,3091.9,3091.8,0.475]
[1763565280458,119.999,3092.0,3091.8,0.95]
[1763565280630,119.999,3092.0,3091.8,0.475]
[1763565280962,119.999,3092.0,3091.9,0.95]
[1763565284061,120.50660482,3092.0,3091.9,0.95]
[1763565285228,120.50580482,3092.0,3091.9,0.95]
[1763565285848,120.50580482,3092.0,3091.9,1.36843682]
[1763565286048,120.49820482,3092.0,3091.9,5.00819807]
[1763565286425,120.49820482,3092.0,3091.9,1.77394082]
[1763565286645,120.49820482,3092.0,3091.9,1.355504]
[1763565287165,106.91561459,3092.0,3091.9,14.86954312]
[1763565287368,106.91561459,3092.0,3091.9,9.90022427]
[1763565287556,106.91561459,3092.0,3091.9,6.66596702]
[1763565287735,106.91561459,3092.0,3091.4,0.001]
[1763565288065,0.1991,3091.9,3091.4,0.001]
[1763565288457,110.19952507,3092.0,3091.4,0.001]
[1763565288762,107.82260723,3092.0,3091.9,0.001]
[1763565289389,108.33028702,3092.0,3091.9,0.001]
[1763565289747,107.82260723,3092.0,3091.9,0.001]
[1763565290764,108.76600723,3092.0,3091.9,0.001]
[1763565292565,109.27373626,3092.0,3091.9,0.001]
[1763565292755,108.33033626,3092.0,3091.9,0.001]
[1763565293097,107.42334362,3092.0,3091.9,0.001]
[1763565293252,106.91561459,3092.0,3091.9,0.001]
[1763565293457,107.4232782,3092.0,3091.9,0.001]
[1763565293683,106.91561459,3092.0,3091.9,0.001]
[1763565297487,107.4232476,3092.0,3091.9,0.001]
[1763565298687,107.4232476,3092.0,3091.2,0.330114]
[1763565299160,107.4232476,3092.0,3091.0,3.23616302]
[1763565299489,107.4232476,3092.0,3091.0,0.001]
[1763565299672,107.4232476,3092.0,3091.1,0.115]
[1763565300500,107.4232476,3092.0,3091.0,0.001]
[1763565300704,107.4232476,3092.0,3091.0,0.406504]
[1763565300854,107.4232476,3092.0,3091.0,0.001]
[1763565301256,107.4232476,3092.0,3091.1,0.90699264]
[1763565301456,107.4232476,3092.0,3091.2,0.405504]
[1763565301655,107.4232476,3092.0,3091.5,1.31249664]
[1763565302469,96.80614042,3092.0,3091.9,0.405504]
[1763565302786,95.83207867,3092.0,3091.9,0.405504]
[1763565302985,95.83207867,3092.0,3091.9,0.520504]
[1763565303205,95.83207867,3092.0,3091.8,0.520504]
[1763565303405,95.83207867,3092.0,3091.9,4.54675389]
[1763565303755,95.83207867,3092.0,3091.9,4.14124989]
[1763565304304,95.83207867,3092.0,3091.9,0.90699264]
[1763565304709,95.83207867,3092.0,3091.9,1.31249664]
[1763565305288,76.60364162,3092.0,3091.9,4.54675389]
[1763565305490,76.5713001,3092.0,3091.9,11.53753576]
[1763565305704,0.50739961,3092.7,3092.1,0.405504]
[1763565306379,0.002,3093.4,3092.6,1.31249664]
[1763565306578,0.002,3093.4,3093.3,8.18827851]
[1763565306792,0.50926995,3093.8,3093.4,1.31249664]
[1763565307092,0.002,3093.9,3093.6,1.31249664]
[1763565307280,0.002,3093.9,3093.7,3.23237547]
[1763565307481,0.002,3093.9,3093.8,1.31249664]
[1763565309001,0.1991,3097.2,3093.9,0.405504]
[1763565309212,0.4896,3096.3,3093.9,0.405504]
[1763565309374,0.35550937,3095.9,3094.3,1.31249664]
[1763565309576,0.35550937,3095.9,3094.5,0.405504]
[1763565309805,0.35550937,3095.9,3094.3,0.90699264]
[1763565310021,0.35550937,3095.9,3094.3,0.405504]
[1763565310180,0.35550937,3095.9,3094.3,1.31249664]
[1763565310181,0.16840937,3095.9,3094.3,1.31249664]
[1763565310382,0.50708744,3095.6,3094.3,1.31249664]
[1763565310918,0.50708744,3095.6,3094.9,1.31249664]
[1763565311142,0.16840937,3095.9,3095.1,0.405504]
[1763565311303,0.4896,3095.8,3094.1,0.90699264]
[1763565311471,0.04037858,3095.7,3093.5,3.23258445]
[1763565311672,0.04037858,3095.7,3093.6,0.115]
[1763565312028,0.4896,3095.6,3092.9,3.23321154]
[1763565312176,0.4896,3095.6,3093.0,0.115]
[1763565312697,0.44588519,3095.5,3093.0,0.115]
[1763565312911,1.31249664,3095.2,3092.0,3.23415265]
[1763565313120,0.405504,3095.0,3092.1,0.115]
[1763565313324,0.405504,3095.0,3092.3,0.90699264]
[1763565313615,0.71628902,3094.9,3092.3,0.90699264]
[1763565313800,0.50737379,3094.7,3092.4,0.405504]
[1763565314001,0.04039294,3094.6,3092.4,0.405504]
[1763565314190,0.52999294,3094.6,3092.3,0.90699264]
[1763565314505,0.50738299,3094.2,3092.3,0.90699264]
[1763565314706,0.50738299,3094.2,3092.4,0.405504]
[1763565314904,0.52999946,3094.1,3092.3,0.65757989]
[1763565315101,0.52999946,3094.1,3092.3,1.56457253]
[1763565315298,0.50738299,3094.2,3092.1,0.115]
[1763565315299,0.50738299,3094.2,3092.4,6.46746862]
[1763565315496,0.4896,3094.1,3092.5,0.90699264]
[1763565315706,0.52999946,3094.1,3092.5,0.90699264]
[1763565316010,0.4896,3094.1,3092.5,0.90699264]
[1763565316209,0.4896,3094.1,3092.3,0.90699264]
[1763565316788,0.4896,3094.1,3092.4,0.405504]
[1763565317605,0.4896,3094.1,3092.6,0.405504]
[1763565317808,0.4896,3094.1,3092.1,0.66131329]
[1763565318015,0.4896,3094.1,3091.9,0.001]
[1763565318016,1.39659264,3094.1,3091.9,0.001]
[1763565318217,1.2726768,3094.0,3091.9,0.001]
[1763565318420,1.7622768,3094.0,3091.9,0.001]
[1763565318623,0.6759,3093.9,3091.9,0.001]
[1763565318786,0.6759,3093.9,3091.9,3.23524111]
[1763565318988,0.4896,3093.8,3092.0,0.405504]
[1763565319718,0.4896,3093.8,3092.1,1.3285189]
[1763565319899,0.4896,3093.8,3092.1,1.32851785]
[1763565320096,0.4896,3093.8,3092.1,1.31249664]
[1763565320310,0.4896,3093.8,3091.9,0.001]
[1763565320620,0.4896,3093.8,3092.0,0.90699264]
[1763565320918,0.4896,3093.8,3092.1,0.405504]
[1763565321498,0.4896,3093.8,3092.3,1.31249664]
[1763565323120,0.1863,3093.9,3092.3,8.03985084]
[1763565323488,0.1863,3093.9,3092.5,1.31249664]
[1763565323701,0.99698299,3094.2,3092.5,1.31249664]
[1763565323904,0.99698299,3094.2,3092.5,1.42649664]
[1763565324102,0.50738299,3094.2,3092.5,1.42649664]
[1763565324302,0.4896,3094.5,3092.5,1.42649664]
[1763565325333,0.04039555,3094.4,3092.5,1.42649664]
[1763565325836,0.4948,3094.3,3092.7,1.31249664]
[1763565326036,0.4948,3094.3,3092.7,0.405504]
[1763565326198,0.04039816,3094.2,3092.4,0.90699264]
[1763565326399,0.04039816,3094.2,3092.1,0.90699264]
[1763565326604,0.4948,3094.1,3092.0,3.23515265]
[1763565326839,0.04040077,3094.0,3092.0,6.4693053]
[1763565327038,0.4948,3094.1,3092.1,0.90699264]
[1763565327213,0.1979,3093.9,3092.2,0.405504]
[1763565327536,0.70533975,3093.9,3092.2,0.519504]
[1763565327840,0.50743805,3093.5,3092.4,1.31249664]
[1763565328424,0.50743805,3093.5,3092.5,0.01601914]
[1763565328623,0.50743805,3093.5,3093.0,1.31249664]
[1763565328829,0.6811,3094.9,3093.2,0.405504]
[1763565329025,0.5072435,3093.5,3093.2,0.405504]
[1763565329226,0.5072435,3093.5,3093.0,0.90699264]
[1763565329412,0.1979,3093.9,3093.0,0.405504]
[1763565329613,0.1979,3093.9,3093.1,3.23300248]
[1763565329803,0.1979,3093.9,3093.3,0.405504]
[1763565330001,0.1863,3094.9,3093.3,0.405504]
[1763565330204,0.4948,3094.8,3093.3,0.405504]
[1763565331245,0.04039163,3094.7,3093.3,0.405504]
[1763565331561,0.04039294,3094.6,3093.0,0.405504]
[1763565331857,0.53519163,3094.7,3092.7,3.23342063]
[1763565332021,0.5073783,3094.3,3092.9,0.405504]
[1763565332224,0.4948,3094.2,3092.9,0.405504]
[1763565332561,0.4948,3094.2,3092.7,0.90699264]
[1763565332861,0.4948,3094.2,3092.8,0.405504]
[1763565333865,0.4948,3094.2,3092.8,3.63875473]
[1763565334161,0.4948,3094.2,3092.8,0.405504]
[1763565334352,0.04039946,3094.1,3092.5,1.31249664]
[1763565334748,0.4948,3094.1,3092.5,1.31249664]
[1763565334977,0.5073783,3094.3,3093.2,1.31249664]
[1763565335131,0.4948,3094.7,3093.2,1.42649664]
[1763565335326,0.1979,3094.6,3093.3,0.0009]
[1763565336328,0.1979,3094.6,3093.1,0.405504]
[1763565336751,0.04039424,3094.5,3092.3,0.0009]
[1763565336955,0.94738688,3094.5,3092.0,0.1159]
[1763565337148,0.43767277,3094.4,3092.0,0.1159]
[1763565337350,0.04039685,3094.3,3092.0,0.1159]
[1763565337550,0.4948,3094.2,3092.0,0.1159]
[1763565337751,0.9473921,3094.1,3092.1,0.405504]
[1763565337952,7.41136246,3094.1,3092.0,0.001]
[1763565338161,2.16850889,3094.0,3092.0,0.001]
[1763565338363,0.04040208,3093.9,3092.0,0.001]
[1763565338539,0.50752676,3093.6,3092.0,0.001]
[1763565338745,0.4709,3093.5,3092.0,0.001]
[1763565339358,0.50756755,3093.2,3092.0,0.001]
[1763565340031,0.4709,3093.2,3092.0,0.001]
[1763565341236,0.50752676,3093.6,3092.1,0.0009]
[1763565341436,0.4709,3093.5,3092.1,0.0009]
[1763565343289,0.4709,3093.5,3092.0,0.001]
[1763565343631,0.4709,3093.5,3092.0,0.0019]
[1763565343872,0.50751013,3093.3,3092.0,0.0019]
[1763565344976,0.50751013,3093.3,3091.8,1.26539664]
[1763565345696,0.50752676,3093.6,3092.4,0.90699264]
[1763565345835,0.4709,3094.3,3092.7,0.90699264]
[1763565346036,0.50741262,3093.9,3092.7,0.90699264]
[1763565346261,0.4709,3094.3,3092.0,0.114]
[1763565346262,0.04040338,3093.8,3092.0,0.114]
[1763565346465,0.1896,3093.8,3092.0,0.114]
[1763565346666,0.51130469,3093.7,3091.7,3.89486468]
[1763565346896,0.51130469,3093.7,3091.7,7.12933115]
[1763565346897,0.4709,3093.7,3091.7,7.12933115]
[1763565347215,0.04040599,3093.6,3091.8,0.405504]
[1763565347377,0.4709,3093.7,3091.8,1.31249664]
[1763565347581,0.4709,3093.6,3091.8,8.03985084]
[1763565347780,0.1896,3093.8,3091.9,0.42153044]
[1763565348018,0.1896,3093.8,3092.1,1.31249664]
[1763565348222,0.1896,3093.8,3092.3,0.405504]
[1763565348513,0.4709,3094.4,3092.3,11.44385084]
[1763565348717,0.1896,3093.9,3092.3,11.44385084]
[1763565349009,0.69700513,3093.9,3092.3,11.44385084]
[1763565349565,1.01482215,3093.9,3092.3,11.44385084]
[1763565349769,0.69701702,3093.9,3092.3,11.44385084]
[1763565350016,0.4709,3093.8,3092.3,17.91151627]
[1763565350191,0.69701702,3093.9,3092.3,17.91151627]
[1763565350380,1.16791702,3093.9,3092.3,17.91151627]
[1763565350580,1.16791702,3093.9,3092.3,7.78016207]
[1763565350890,0.6605,3093.9,3092.3,4.54632318]
[1763565351292,0.4709,3093.8,3092.4,0.90699264]
[1763565351614,0.4709,3093.8,3092.3,0.405504]
[1763565351786,0.4709,3093.8,3092.4,0.90699264]
[1763565351981,0.4709,3093.8,3092.6,1.31249664]
[1763565352209,0.4709,3093.8,3092.6,0.405504]
[1763565353208,0.50745015,3093.6,3092.5,0.405504]
[1763565353969,0.50745015,3093.6,3092.7,1.31249664]
[1763565354174,0.50745015,3093.6,3092.9,1.31249664]
[1763565355104,0.50745015,3093.6,3092.9,0.405504]
[1763565355319,0.97835015,3093.6,3092.5,3.233623]
[1763565355477,0.97835015,3093.6,3092.5,6.46725274]
[1763565355677,0.50745015,3093.6,3092.6,0.90699264]
[1763565356009,0.97835015,3093.6,3092.7,0.405504]
[1763565356316,0.97835015,3093.6,3092.6,1.31249664]
[1763565356618,0.50745015,3093.6,3092.6,1.31249664]
[1763565356776,0.50745015,3093.6,3092.7,0.405504]
[1763565357316,0.97835015,3093.6,3092.7,0.405504]
[1763565357612,0.97835015,3093.6,3092.6,1.31249664]
[1763565357988,0.97835015,3093.6,3092.7,0.405504]
[1763565358308,0.50745015,3093.6,3092.7,6.87231338]
[1763565358807,0.50745015,3093.6,3092.7,3.63889275]
[1763565358990,0.50745015,3093.6,3092.7,6.87231338]
[1763565359580,0.46497197,3093.6,3092.8,4.31099264]
[1763565359915,0.1896,3094.9,3093.8,0.90699264]
[1763565360110,0.1896,3094.9,3094.0,0.405504]
[1763565360315,0.002,3094.2,3094.0,3.63755685]
[1763565360679,0.002,3094.2,3094.1,0.0016]
[1763565361114,0.002,3094.2,3094.1,1.04700023]
[1763565361338,0.002,3094.2,3094.1,0.519504]
[1763565361623,0.002,3094.2,3093.7,0.405504]
[1763565361849,0.002,3094.2,3094.1,0.0008]
[1763565362132,0.002,3094.2,3094.1,4.65925423]
[1763565362628,0.002,3094.2,3094.1,4.66005423]
[1763565362790,0.002,3094.2,3094.1,11.38740843]
[1763565362992,0.002,3094.2,3094.1,1.31329664]
[1763565363226,0.002,3094.2,3094.1,1.42649664]
[1763565364228,0.002,3094.2,3094.1,0.0008]
[1763565364823,0.002,3094.2,3093.9,0.405504]
[1763565365014,0.002,3094.2,3094.1,0.0008]
[1763565365431,0.002,3094.2,3094.1,0.0016]
[1763565365692,0.002,3094.2,3094.1,1.31409664]
[1763565366138,0.002,3094.2,3094.1,4.54605423]
[1763565366288,0.002,3094.5,3094.1,11.02595512]
[1763565366493,0.002,3094.5,3094.4,0.0008]
[1763565366716,0.002,3094.5,3094.4,4.71809664]
[1763565367101,0.002,3095.9,3094.5,4.71649664]
[1763565367331,0.002,3095.9,3095.8,0.0008]
[1763565367504,0.002,3095.9,3095.8,0.520304]
[1763565367697,0.002,3095.9,3095.8,0.521104]
[1763565368097,0.002,3095.9,3095.8,4.65747946]
[1763565368297,0.002,3096.3,3095.9,0.405504]
[1763565368537,0.002,3096.3,3096.2,8.03985084]
[1763565368740,0.002,3096.3,3096.2,8.15385084]
[1763565368900,0.002,3096.3,3096.2,8.15465084]
[1763565369230,0.002,3096.3,3096.2,8.04065084]
[1763565369394,0.002,3096.3,3096.2,8.15465084]
[1763565370196,0.002,3096.3,3096.2,4.54226215]
[1763565370502,0.002,3096.3,3096.2,4.65706215]
[1763565371142,0.002,3096.3,3096.2,5.31562441]
[1763565371649,0.002,3097.4,3096.3,1.31249664]
[1763565371794,0.002,3097.4,3096.5,0.405504]
[1763565371993,0.002,3097.4,3096.5,0.1148]
[1763565372227,0.002,3097.4,3096.5,3.7497566]
[1763565372428,0.002,3097.4,3096.5,4.65754924]
[1763565372935,0.002,3097.4,3097.1,1.31249664]
[1763565373107,0.002,3097.4,3097.2,0.114]
[1763565373315,0.002,3097.4,3097.3,0.114]
[1763565373707,0.002,3097.4,3097.3,0.519504]
[1763565375145,0.9501,3097.4,3096.5,3.22937552]
[1763565375362,0.9501,3097.4,3096.0,3.22993123]
[1763565375363,0.6604,3096.6,3096.0,3.22993123]
[1763565375669,0.1811,3096.6,3096.2,0.114]
[1763565375814,0.6499,3096.6,3096.3,0.114]
[1763565376149,0.50685539,3096.6,3096.3,0.114]
[1763565376513,0.50685539,3096.6,3096.3,1.02099264]
[1763565376929,0.50685539,3096.6,3096.4,0.405504]
[1763565377632,0.50885539,3096.6,3096.4,0.405504]
[1763565378654,0.9481,3096.5,3096.3,0.405504]
[1763565378860,0.50885539,3096.6,3096.3,0.405504]
[1763565378861,0.50885539,3096.6,3096.4,0.114]
[1763565379013,0.002,3096.6,3096.4,0.114]
[1763565379209,0.002,3096.6,3096.3,1.31249664]
[1763565379414,0.002,3096.6,3096.4,0.114]
[1763565379867,0.9481,3096.5,3094.5,0.0008]
[1763565380077,0.9481,3096.4,3094.0,0.001]
[1763565380279,0.4688,3096.4,3094.0,0.001]
[1763565380487,0.1811,3094.1,3094.0,0.001]
[1763565380684,0.1811,3094.1,3093.7,0.001]
[1763565380841,0.4688,3094.0,3093.7,0.001]
[1763565381246,0.4688,3094.0,3093.4,0.001]
[1763565382355,0.50731161,3093.9,3093.4,0.001]
[1763565382878,0.4188,3093.8,3093.4,0.001]
[1763565383686,0.1811,3095.0,3093.6,0.405504]
[1763565384168,0.50717481,3094.4,3093.8,0.405504]
[1763565384548,0.50717481,3094.4,3094.0,0.405504]
[1763565384982,0.4995,3094.3,3093.9,0.405504]
[1763565385285,0.4987,3094.3,3093.7,0.405504]
[1763565385588,0.50717481,3094.4,3093.7,1.31249664]
[1763565386159,0.50717481,3094.4,3093.9,0.405504]
[1763565386549,0.50717481,3094.4,3094.1,0.405504]
[1763565387179,0.50717481,3094.4,3093.9,0.405504]
[1763565387384,1.00667481,3094.4,3094.1,0.405504]
[1763565387595,1.00667481,3094.4,3093.4,0.001]
[1763565387796,1.00667481,3094.4,3093.4,3.23368544]
[1763565387797,0.4995,3094.3,3093.4,3.23368544]
[1763565387981,0.4995,3094.3,3093.5,0.405504]
[1763565388185,0.4995,3094.3,3093.4,0.001]
[1763565388855,0.4995,3094.7,3093.4,0.001]
[1763565389496,0.4995,3094.7,3093.5,0.114]
[1763565390472,0.1811,3095.0,3093.9,1.31249664]
[1763565390797,0.1951,3095.3,3094.1,0.405504]
[1763565391001,0.1811,3096.0,3094.2,6.9331068]
[1763565391326,0.6806,3096.0,3094.3,0.519504]
[1763565391666,0.4995,3095.9,3094.3,0.519504]
[1763565391863,0.04037728,3095.8,3093.8,6.46454198]
[1763565392077,0.53987598,3095.9,3094.0,0.405504]
[1763565392262,0.1811,3096.0,3094.1,0.114]
[1763565392263,0.4995,3095.8,3094.1,0.114]
[1763565392490,0.4995,3095.8,3094.3,1.31249664]
[1763565392673,1.00662244,3095.8,3094.5,3.404]
[1763565392874,1.00662244,3095.8,3094.3,1.31249664]
[1763565393067,0.4995,3095.7,3094.3,1.31249664]
[1763565393565,0.4995,3095.7,3094.3,2.01846325]
[1763565394476,0.4995,3095.7,3094.7,1.31249664]
[1763565394666,0.1811,3096.0,3094.9,0.405504]
[1763565395727,0.4995,3095.9,3094.7,0.90699264]
[1763565396028,0.4995,3095.9,3095.1,0.405504]
[1763565396228,0.4995,3095.9,3094.9,0.405504]
[1763565396392,0.1811,3096.0,3094.9,0.405504]
[1763565396586,0.4995,3096.3,3095.1,1.31249664]
[1763565397031,0.002,3096.4,3095.1,1.36609664]
[1763565397228,0.002,3096.4,3095.3,0.405504]
[1763565397413,0.002,3096.4,3095.5,0.405504]
[1763565398192,0.50690667,3096.2,3095.5,0.405504]
[1763565398590,0.50690667,3096.2,3095.6,9.69117456]
[1763565398790,0.002,3096.4,3096.2,0.405504]
[1763565398993,0.002,3096.4,3096.3,0.405504]
[1763565399402,0.50884007,3096.4,3096.3,0.405504]
[1763565400495,0.002,3096.4,3096.3,0.405504]
[1763565400804,0.002,3096.4,3096.3,4.70975784]
[1763565402111,0.002,3096.4,3096.3,4.59575784]
[1763565402325,0.002,3096.4,3096.3,4.65615784]
[1763565403349,0.002,3096.4,3096.3,4.54215784]
[1763565403530,0.002,3096.4,3096.3,4.25065384]
[1763565404036,0.002,3096.4,3095.9,0.0536]
[1763565404037,0.002,3096.4,3096.0,3.22989986]
[1763565404247,0.002,3096.4,3096.2,0.114]
[1763565404747,0.002,3096.4,3096.3,0.405504]
[1763565405156,0.002,3096.4,3096.3,4.59575784]
[1763565405721,0.002,3096.4,3096.3,4.54215784]
[1763565406121,0.002,3096.4,3096.3,4.65615784]
[1763565406316,0.002,3096.4,3096.3,4.54215784]
[1763565406557,0.002,3096.4,3096.3,4.65615784]
[1763565408018,0.002,3096.4,3096.3,4.54215784]
[1763565408254,0.002,3096.4,3096.3,4.70975784]
[1763565408419,0.002,3096.4,3096.3,4.65615784]
[1763565408820,0.002,3096.4,3096.3,4.70975784]
[1763565409257,0.002,3096.4,3096.3,8.11375784]
[1763565409464,0.002,3097.0,3096.7,0.324]
[1763565409648,0.002,3097.0,3096.9,0.405504]
[1763565409828,0.002,3097.0,3096.9,0.519504]
[1763565410031,0.0012,3097.0,3096.9,0.519504]
[1763565410456,0.4552,3097.0,3096.9,0.519504]
[1763565410756,0.0012,3097.0,3096.9,0.519504]
[1763565410934,0.0012,3097.0,3096.9,0.405504]
[1763565411259,0.0012,3097.0,3096.9,0.519504]
[1763565411442,0.0012,3097.0,3096.9,0.114]
[1763565411649,0.0012,3097.0,3096.9,4.65553212]
[1763565413024,0.0012,3097.0,3096.9,4.54153212]
[1763565413232,0.0012,3097.0,3096.3,0.324]
[1763565413233,0.4552,3097.0,3096.3,3.2296612]
[1763565413569,0.1865,3096.9,3096.4,3.34353645]
[1763565413773,0.1865,3096.9,3096.2,3.87901231]
[1763565413925,0.454,3096.8,3095.4,3.23060024]
[1763565414124,0.454,3096.8,3094.8,0.0536]
[1763565414125,0.1865,3095.8,3094.9,0.0536]
[1763565414364,0.1865,3095.8,3094.9,0.114]
[1763565414669,0.454,3096.3,3094.9,0.114]
[1763565414823,0.1865,3095.9,3094.9,1.02099264]
[1763565415026,0.1865,3095.9,3095.0,0.114]
[1763565415244,0.454,3095.8,3095.0,0.114]
[1763565415456,0.454,3095.8,3095.2,0.90699264]
[1763565415762,0.454,3095.8,3095.1,6.46182674]
[1763565415952,0.454,3095.8,3095.2,0.114]
[1763565416353,0.1865,3095.9,3095.2,0.114]
[1763565416552,0.454,3096.2,3095.3,0.405504]
[1763565417060,0.454,3096.7,3095.3,0.405504]
[1763565417260,0.454,3096.7,3095.5,0.405504]
[1763565417464,0.454,3096.7,3096.0,0.405504]
[1763565417668,0.454,3096.7,3095.9,0.114]
[1763565418777,0.454,3096.7,3096.0,0.405504]
[1763565419575,0.1865,3096.9,3096.0,0.405504]
[1763565419576,0.6405,3096.9,3096.2,0.405504]
[1763565419775,0.454,3096.8,3096.2,0.405504]
[1763565420389,0.1877,3097.0,3096.2,1.31249664]
[1763565420390,0.0012,3097.0,3096.2,1.31249664]
[1763565421447,0.0012,3097.0,3096.4,0.405504]
[1763565421644,0.0012,3097.0,3096.6,1.31249664]
[1763565422056,0.50670982,3096.9,3096.6,1.31249664]
[1763565422654,0.50670982,3096.9,3096.8,0.405504]
[1763565423478,0.69320982,3096.9,3096.8,0.405504]
[1763565423777,0.50670982,3096.9,3096.8,4.54163639]
[1763565423941,0.0012,3097.0,3096.8,4.59523639]
[1763565424145,0.0012,3097.0,3096.9,0.90699264]
[1763565424442,0.0012,3097.0,3096.9,1.38200929]
[1763565424667,0.0012,3097.0,3096.9,1.36609664]
[1763565424998,0.0012,3097.0,3096.9,1.41969664]
[1763565425202,0.002,3097.3,3097.0,0.405504]
[1763565425363,0.002,3097.4,3097.0,0.459104]
[1763565425564,0.002,3097.8,3097.4,1.31249664]
[1763565425768,0.002,3097.8,3097.3,8.17602976]
[1763565425769,0.454,3099.4,3097.6,1.31249664]
[1763565425970,0.1865,3100.0,3098.4,1.31249664]
[1763565426275,0.1865,3100.0,3099.0,1.31249664]
[1763565426466,0.1865,3100.0,3099.2,0.405504]
[1763565426872,0.1865,3101.0,3099.6,1.31249664]
[1763565427072,0.454,3100.9,3099.8,0.405504]
[1763565427273,0.50623234,3100.3,3099.8,0.405504]
[1763565427485,0.50623234,3100.3,3100.0,0.405504]
[1763565427685,0.1865,3101.0,3100.3,0.405504]
[1763565427991,0.1865,3101.0,3100.3,1.31249664]
[1763565428183,0.4651,3101.7,3100.3,1.31249664]
[1763565428380,0.4651,3101.3,3100.3,1.31249664]
[1763565429314,0.4651,3101.3,3100.5,0.405504]
[1763565429681,0.4651,3101.3,3100.7,0.405504]
[1763565429877,0.4651,3101.3,3100.8,0.113]
[1763565430077,0.63408955,3101.8,3100.9,0.405504]
[1763565430582,0.1865,3102.0,3100.9,0.405504]
[1763565431010,0.4651,3102.3,3100.9,0.405504]
[1763565431486,0.4651,3102.3,3100.7,0.405504]
[1763565431711,0.4651,3102.3,3100.8,0.113]
[1763565431918,0.1999,3100.9,3099.9,3.22587454]
[1763565432128,0.1999,3100.9,3100.0,0.113]
[1763565432430,0.1999,3100.9,3099.1,0.0536]
[1763565432431,0.4651,3100.8,3098.7,6.45431954]
[1763565432589,0.4651,3100.8,3099.5,0.65301627]
[1763565432790,0.4651,3100.8,3099.6,0.113]
[1763565433414,0.002,3101.3,3099.9,0.90699264]
[1763565433415,0.4671,3101.3,3099.9,0.90699264]
[1763565433715,0.002,3101.3,3100.8,0.405504]
[1763565433918,0.002,3101.3,3100.9,0.113]
[1763565434083,0.4671,3101.3,3100.9,0.113]
[1763565434285,0.4671,3101.3,3101.0,0.113]
[1763565434525,0.4671,3101.3,3100.1,1.31249664]
[1763565434721,0.4671,3101.3,3100.2,0.113]
[1763565435107,0.4663,3101.3,3100.2,0.113]
[1763565435308,0.4663,3101.3,3100.1,1.31249664]
[1763565435641,0.04030697,3101.2,3099.2,3.88261953]
[1763565435840,0.04030697,3101.2,3099.3,0.113]
[1763565435841,0.1999,3100.2,3099.3,0.113]
[1763565436135,0.1999,3100.2,3098.4,6.45494448]
[1763565436136,0.1999,3099.4,3098.4,6.45494448]
[1763565436289,0.1999,3099.4,3098.5,0.113]